lending/lending_fUSD_20260310
["ID","MTS","AMOUNT","RATE_DAILY","PERIOD"]
[408068299,1773102652094,-150.0,0.00019949,4]
[408068300,1773102652104,-150.0,0.00019956,4]
[408068301,1773102652114,-178.69066135,0.00019959,4]
[408068302,1773102652125,-237.47755465,0.00019959,4]
[408068303,1773102652134,-259.53855074,0.00019959,4]
[408068304,1773102652144,-496.40379828,0.00019959,4]
[408068305,1773102652153,-196.51282028,0.00019959,4]
[408068306,1773102652163,-150.0,0.00019961,4]
[408068307,1773102652172,-248.686507,0.00019962,2]
[408068308,1773102652182,-150.0,0.00019964,4]
[408068309,1773102652192,-150.0,0.00019966,4]
[408068310,1773102652208,-150.0,0.00019967,4]
[408068311,1773102652217,-500.0,0.00019967,2]
[408068312,1773102652226,-151.0,0.00019967,2]
[408068313,1773102652236,-1279.0,0.00019968,2]
[408068314,1773102652248,-922.0,0.00019968,2]
[408068315,1773102652257,-1213.0,0.00019968,2]
[408068316,1773102652266,-1042.0,0.00019968,2]
[408068317,1773102652275,-1342.0,0.00019968,2]
[408068318,1773102652284,-3505.0,0.00019968,2]
[408068319,1773102652293,-399.79382863,0.00019969,2]
[408068320,1773102652309,-178.69066135,0.00019969,4]
[408068321,1773102652319,-237.47755465,0.00019969,4]
[408068322,1773102652329,-259.53855074,0.00019969,4]
[408068323,1773102652338,-496.40379828,0.00019969,4]
[408068324,1773102652358,-196.51282028,0.00019969,4]
[408068325,1773102652378,-400.0,0.0001997,2]
[408068326,1773102652388,-400.0,0.0001997,2]
[408068327,1773102652398,-400.0,0.0001997,2]
[408068328,1773102652407,-402.18256312,0.0001997,2]
[408068329,1773102652416,-400.0,0.0001997,2]
[408068330,1773102652426,-500.86669167,0.00019972,2]
[408068331,1773102652435,-500.0,0.00019972,2]
[408068332,1773102652444,-500.0,0.00019972,2]
[408068333,1773102652453,-500.0,0.00019972,2]
[408068334,1773102652462,-500.0,0.00019972,2]
[408068335,1773102652472,-500.0,0.00019972,2]
[408068336,1773102652481,-200.51830949,0.00019972,2]
[408068337,1773102652491,-500.0,0.00019972,2]
[408068338,1773102652499,-500.0,0.00019972,2]
[408068339,1773102652508,-500.0,0.00019972,2]
[408068340,1773102652518,-500.0,0.00019972,2]
[408068341,1773102652527,-500.0,0.00019972,2]
[408068342,1773102652536,-500.0,0.00019972,2]
[408068343,1773102652545,-301.24414202,0.00019972,2]
[408068344,1773102652554,-500.0,0.00019972,2]
[408068345,1773102652563,-500.0,0.00019972,2]
[408068346,1773102652572,-500.0,0.00019972,2]
[408068347,1773102652584,-500.0,0.00019972,2]
[408068348,1773102652593,-500.0,0.00019972,2]
[408068349,1773102652603,-252.59,0.00019972,2]
[408068350,1773102652613,-2892.0,0.00019973,2]
[408068351,1773102652622,-500.0,0.00019973,2]
[408068352,1773102652631,-164.4260073,0.00019973,2]
[408068353,1773102652640,-500.0,0.00019973,2]
[408068354,1773102652649,-500.0,0.00019973,2]
[408068355,1773102652658,-500.0,0.00019973,2]
[408068356,1773102652668,-310.0993093,0.00019973,2]
[408068357,1773102652678,-150.0,0.00019973,4]
[408068358,1773102652687,-150.0,0.00019973,4]
[408068359,1773102652696,-500.0,0.00019973,2]
[408068360,1773102652705,-500.0,0.00019973,2]
[408068361,1773102652714,-500.0,0.00019973,2]
[408068362,1773102652723,-500.0,0.00019973,2]
[408068363,1773102652732,-500.0,0.00019973,2]
[408068364,1773102652740,-500.0,0.00019973,2]
[408068365,1773102652750,-500.0,0.00019973,2]
[408068366,1773102652759,-500.0,0.00019973,2]
[408068367,1773102652768,-500.0,0.00019974,2]
[408068368,1773102652776,-450.77276533,0.00019974,2]
[408068369,1773102652785,-500.0,0.00019974,2]
[408068370,1773102652794,-500.0,0.00019974,2]
[408068371,1773102652804,-150.0,0.00019975,2]
[408068372,1773102652813,-150.0,0.00019978,4]
[408068373,1773102652822,-178.69066135,0.0001998,4]
[408068374,1773102652833,-237.47755465,0.0001998,4]
[408068375,1773102652842,-259.53855074,0.0001998,4]
[408068376,1773102652851,-496.40379828,0.0001998,4]
[408068377,1773102652861,-196.51282028,0.0001998,4]
[408068378,1773102652870,-150.0,0.00019981,4]
[408068379,1773102652880,-150.0,0.00019982,4]
[408068380,1773102652890,-150.0,0.00019983,4]
[408068381,1773102652899,-150.0,0.00019989,4]
[408068382,1773102652908,-178.69066135,0.0001999,4]
[408068383,1773102652917,-237.47755465,0.0001999,4]
[408068384,1773102652926,-259.53855074,0.0001999,4]
[408068385,1773102652936,-496.40379828,0.0001999,4]
[408068386,1773102652945,-196.51282028,0.0001999,4]
[408068387,1773102652955,-196.51231277,0.0001999,2]
[408068388,1773102652965,-168.0,0.00019994,2]
[408068389,1773102652976,-388.82005991,0.00019996,2]
[408068390,1773102652987,-500.0,0.00019996,2]
[408068391,1773102652998,-566.0,0.00019996,2]
[408068392,1773102653008,-151.0,0.00019996,2]
[408068393,1773102653019,-151.0,0.00019997,2]
[408068394,1773102653030,-155.0,0.00019998,2]
[408068395,1773102653041,-500.0,0.00019998,2]
[408068396,1773102653051,-203.07637634,0.00019999,2]
[408068397,1773102653062,-500.0,0.00019999,2]
[408068398,1773102653076,-500.0,0.00019999,2]
[408068399,1773102653088,-500.0,0.00019999,2]
[408068400,1773102653098,-500.0,0.00019999,2]
[408068401,1773102653109,-500.0,0.00019999,2]
[408068402,1773102653296,-500.0,0.00019999,2]
[408068403,1773102653305,-500.0,0.00019999,2]
[408068404,1773102653314,-500.0,0.00019999,2]
[408068405,1773102653324,-263.81956629,0.00019999,2]
[408068406,1773102653341,-520.20395921,0.00019999,2]
[408068407,1773102653350,-500.0,0.00019999,2]
[408068408,1773102653359,-500.0,0.00019999,2]
[408068409,1773102653368,-500.0,0.00019999,2]
[408068410,1773102653377,-500.0,0.00019999,2]
[408068411,1773102653386,-500.0,0.00019999,2]
[408068412,1773102653396,-500.0,0.00019999,2]
[408068413,1773102653405,-500.0,0.00019999,2]
[408068414,1773102653414,-500.0,0.00019999,2]
[408068415,1773102653432,-597.51,0.00019999,2]
[408068416,1773102653442,-500.0,0.00019999,2]
[408068417,1773102653451,-500.0,0.00019999,2]
[408068418,1773102653459,-370.69943514,0.00019999,2]
[408068419,1773102653468,-500.0,0.00019999,2]
[408068420,1773102653478,-500.0,0.00019999,2]
[408068421,1773102653487,-500.0,0.00019999,2]
[408068422,1773102653496,-500.0,0.00019999,2]
[408068423,1773102653505,-500.0,0.00019999,2]
[408068424,1773102653514,-500.0,0.00019999,2]
[408068425,1773102653523,-500.0,0.00019999,2]
[408068426,1773102653532,-500.0,0.00019999,2]
[408068427,1773102653542,-500.0,0.00019999,2]
[408068428,1773102653551,-500.0,0.00019999,2]
[408068429,1773102653561,-500.0,0.00019999,2]
[408068430,1773102653570,-500.0,0.00019999,2]
[408068431,1773102653579,-367.59794643,0.00019999,2]
[408068432,1773102653588,-1000.0,0.00019999,2]
[408068433,1773102653598,-1000.0,0.00019999,2]
[408068434,1773102653607,-1000.0,0.00019999,2]
[408068435,1773102653617,-1000.0,0.00019999,2]
[408068436,1773102653626,-1000.0,0.00019999,2]
[408068437,1773102653636,-1000.0,0.00019999,2]
[408068438,1773102653645,-1000.0,0.00019999,2]
[408068439,1773102653654,-1000.0,0.00019999,2]
[408068440,1773102653663,-1000.0,0.00019999,2]
[408068441,1773102653673,-1000.0,0.00019999,2]
[408068442,1773102653682,-1000.0,0.00019999,2]
[408068443,1773102653691,-1000.0,0.00019999,2]
[408068444,1773102653701,-1000.0,0.00019999,2]
[408068445,1773102653710,-1000.0,0.00019999,2]
[408068446,1773102653719,-1000.0,0.00019999,2]
[408068447,1773102653728,-1000.0,0.00019999,2]
[408068448,1773102653737,-1000.0,0.00019999,2]
[408068449,1773102653746,-1000.0,0.00019999,2]
[408068450,1773102653756,-1000.0,0.00019999,2]
[408068451,1773102653766,-1000.0,0.00019999,2]
[408068452,1773102653775,-1000.0,0.00019999,2]
[408068453,1773102653783,-1000.0,0.00019999,2]
[408068454,1773102653794,-1000.0,0.00019999,2]
[408068455,1773102653803,-1000.0,0.00019999,2]
[408068456,1773102653813,-1000.0,0.00019999,2]
[408068457,1773102653822,-1000.0,0.00019999,2]
[408068458,1773102653833,-1000.0,0.00019999,2]
[408068459,1773102653842,-1000.0,0.00019999,2]
[408068460,1773102653852,-1000.0,0.00019999,2]
[408068461,1773102653861,-1000.0,0.00019999,2]
[408068462,1773102653870,-280.84200429,0.00019999,2]
[408068463,1773102653879,-500.0,0.00019999,2]
[408068464,1773102653889,-151.0,0.00019999,2]
[408068465,1773102653898,-500.0,0.00019999,2]
[408068466,1773102653909,-500.0,0.00019999,2]
[408068467,1773102653919,-500.0,0.00019999,2]
[408068468,1773102653928,-500.0,0.00019999,2]
[408068469,1773102653938,-500.0,0.00019999,2]
[408068470,1773102653947,-500.0,0.00019999,2]
[408068471,1773102653957,-500.0,0.00019999,2]
[408068472,1773102653967,-500.0,0.00019999,2]
[408068473,1773102653977,-500.0,0.00019999,2]
[408068474,1773102653988,-500.0,0.00019999,2]
[408068475,1773102654000,-500.0,0.00019999,2]
[408068476,1773102654012,-500.0,0.00019999,2]
[408068477,1773102654023,-616.16,0.00019999,2]
[408068478,1773102654039,-151.0,0.00019999,2]
[408068479,1773102654055,-200.0,0.00019999,2]
[408068480,1773102654065,-710.97679281,0.00019999,2]
[408068481,1773102654075,-3000.0,0.00019999,2]
[408068482,1773102654084,-200.0,0.00019999,2]
[408068483,1773102654093,-500.0,0.00019999,2]
[408068484,1773102654102,-500.0,0.00019999,2]
[408068485,1773102654111,-500.0,0.00019999,2]
[408068486,1773102654120,-500.0,0.00019999,2]
[408068487,1773102654130,-266.08,0.00019999,2]
[408068488,1773102654141,-200.0,0.00019999,2]
[408068489,1773102654150,-1917.81228,0.00019999,2]
[408068490,1773102654159,-700.32302,0.00019999,2]
[408068491,1773102654168,-1917.81227,0.00019999,2]
[408068492,1773102654177,-700.32301,0.00019999,2]
[408068493,1773102654187,-700.32302,0.00019999,2]
[408068494,1773102654196,-700.32301,0.00019999,2]
[408068495,1773102654205,-1511.98252,0.00019999,2]
[408068496,1773102654215,-1511.98253,0.00019999,2]
[408068497,1773102654224,-1511.98252,0.00019999,2]
[408068498,1773102654232,-1511.98253,0.00019999,2]
[408068499,1773102654242,-1210.0,0.0002,2]
[408068500,1773102654251,-787.0,0.0002,2]
[408068501,1773102654260,-787.0,0.0002,2]
[408068502,1773102654269,-19531.15981622,0.0002,3]
[408068503,1773102654279,-5616.16818788,0.0002,5]
[408068504,1773102654288,-1198.42471665,0.0002,2]
[408068505,1773102654297,-629926.9300009,0.0002,2]
[408068506,1773102654307,-23587.85,0.0002,2]
[408068507,1773102654315,-326.0,0.0002,2]
[408068508,1773102654325,-9126.99589259,0.0002,2]
[408068509,1773102654342,-473.93335833,0.0002,2]
[408068510,1773102654354,-399.07074908,0.0002,2]
[408068511,1773102654363,-609.81,0.0002,2]
[408068512,1773102654373,-3717.49879762,0.0002,2]
[408068513,1773102654506,10000.0,0.0002,120]
[408068514,1773102654580,-478.51655685,0.0002,2]
[408068515,1773102654601,-616.32833073,0.0002,2]
[408068516,1773102654616,-543.99696911,0.0002,2]
[408068517,1773102654652,-1082.08232065,0.0002,2]
[408068518,1773102654684,-241.38212233,0.00018905,3]
[408068519,1773102654702,-18282.27934765,0.0002,2]
[408068520,1773102654726,-24889.77826162,0.0002,2]
[408068521,1773102654876,-215.030885,0.00018905,2]
[408068522,1773102654892,-174.524052,0.00019181,2]
[408068523,1773102654907,-174.524052,0.00019468,2]
[408068524,1773102654921,-174.524057,0.00019508,2]
[408068525,1773102654936,-5365.91198418,0.0002,2]
[408068526,1773102654954,-85451.67923383,0.0002,2]
[408068527,1773102690708,150.0,0.00019891,120]
[408068529,1773102750510,150.0,0.0001972,120]
[408068531,1773102787218,-1109.0,0.00014368,2]
[408068532,1773103107048,150.0,0.00018418,120]
[408068533,1773103334248,500.0,0.00014368,2]
[408068534,1773103335559,500.0,0.00014368,2]
[408068535,1773103335635,500.0,0.00014368,2]
[408068536,1773103336040,500.0,0.00014368,2]
[408068537,1773103336651,500.0,0.00014368,2]
[408068538,1773103337276,500.0,0.00014368,2]
[408068539,1773103337703,151.0,0.00014368,2]
[408068540,1773103337870,500.0,0.00014368,2]
[408068541,1773103338300,151.0,0.00014368,2]
[408068542,1773103338456,500.0,0.00014368,2]
[408068543,1773103338712,500.0,0.00014368,2]
[408068544,1773103338899,151.0,0.00014368,2]
[408068545,1773103339060,500.0,0.00014368,2]
[408068546,1773103339323,500.0,0.00014368,2]
[408068547,1773103339514,151.0,0.00014368,2]
[408068548,1773103339901,565.63411788,0.00014368,2]
[408068549,1773103340103,151.0,0.00014368,2]
[408068550,1773103340724,151.0,0.00014368,2]
[408068551,1773103341329,151.0,0.00014368,2]
[408068552,1773103341935,151.0,0.00014368,2]
[408068553,1773103342564,151.0,0.00014368,2]
[408068554,1773103343175,151.0,0.00014368,2]
[408068555,1773103388630,178.2,8.922e-05,2]
[408068556,1773103388846,178.2,0.00011896,2]
[408068559,1773103831957,-157.0,0.00014368,3]
[408068560,1773103831967,-483.07450817,0.00014587,2]
[408068561,1773103831976,-178.2,0.0001487,2]
[408068562,1773103831986,-182.8418813,0.00015,30]
[408068563,1773103831998,-630.35824883,0.00015,30]
[408068564,1773103832008,-74.21479432,0.00015,30]
[408068565,1773103832023,-710.44098945,0.00015,30]
[408068566,1773103832033,-365.63381979,0.00015,30]
[408068567,1773103832044,-134.36618021,0.00015,30]
[408068568,1773103832054,-1200.0,0.00015124,2]
[408068569,1773103832065,-135.71052593,0.00015125,2]
[408068570,1773103832077,-287.06431718,0.00015125,2]
[408068571,1773103832088,-686.22515689,0.00015125,2]
[408068572,1773103832097,-178.32248,0.00015802,7]
[408068573,1773103832107,-300.0,0.00015805,2]
[408068574,1773103832116,-204.77558147,0.00015805,2]
[408068575,1773103832125,-185.89948429,0.00015805,2]
[408068576,1773103832136,-1766.92081842,0.00015805,2]
[408068577,1773103832147,-1157.65074635,0.00015805,2]
[408068578,1773103832158,-1889.52895094,0.00015805,2]
[408068579,1773103832167,-300.0,0.0001592,2]
[408068580,1773103832177,-1109.0,0.00015921,2]
[408068582,1773103832187,-150.000004,0.00016241,7]
[408068584,1773103832196,-550.0,0.00016489,2]
[408068585,1773103832206,-151.0,0.0001649,2]
[408068586,1773103832215,-151.0,0.0001649,2]
[408068587,1773103832225,-151.0,0.0001649,2]
[408068588,1773103832234,-151.0,0.0001649,2]
[408068589,1773103832243,-151.0,0.0001649,2]
[408068590,1773103832253,-151.0,0.0001649,2]
[408068591,1773103832262,-151.0,0.0001649,2]
[408068592,1773103832272,-151.0,0.0001649,2]
[408068593,1773103832281,-151.0,0.0001649,2]
[408068594,1773103832290,-151.0,0.0001649,2]
[408068595,1773103832299,-151.0,0.0001649,2]
[408068596,1773103832308,-151.0,0.0001649,2]
[408068597,1773103832318,-151.0,0.0001649,2]
[408068598,1773103832327,-151.0,0.0001649,2]
[408068599,1773103832339,-151.0,0.0001649,2]
[408068600,1773103832350,-151.0,0.0001649,2]
[408068601,1773103832359,-151.0,0.0001649,2]
[408068602,1773103832368,-151.0,0.0001649,2]
[408068603,1773103832379,-151.0,0.0001649,2]
[408068604,1773103832388,-151.0,0.0001649,2]
[408068605,1773103832397,-151.0,0.0001649,2]
[408068606,1773103832406,-1680.0,0.00016634,2]
[408068607,1773103832417,-166.56,0.00016712,2]
[408068608,1773103832427,-1109.0,0.00016759,2]
[408068609,1773103832436,-454.71068769,0.00016804,2]
[408068610,1773103832444,-503.0,0.00017,2]
[408068611,1773103832453,-921.69158953,0.00017026,2]
[408068612,1773103832462,-500.0,0.00017033,2]
[408068613,1773103832471,-500.0,0.00017033,2]
[408068614,1773103832480,-500.0,0.00017096,2]
[408068615,1773103832490,-153.61526492,0.00017179,2]
[408068616,1773103832499,-153.61526492,0.00017349,2]
[408068617,1773103832508,-420.0,0.00017407,2]
[408068618,1773103832517,-216.34695217,0.000175,2]
[408068619,1773103832528,-153.61526492,0.00017519,2]
[408068620,1773103832538,-150.0,0.00017523,7]
[408068621,1773103832548,-174.405579,0.00017523,7]
[408068622,1773103832558,-198.811159,0.00017523,7]
[408068623,1773103832567,-223.216738,0.00017523,7]
[408068624,1773103832576,-247.622318,0.00017523,7]
[408068625,1773103832585,-272.027897,0.00017523,7]
[408068626,1773103832594,-296.433477,0.00017523,7]
[408068627,1773103832603,-320.839056,0.00017523,7]
[408068628,1773103832613,-345.244636,0.00017523,7]
[408068629,1773103832622,-369.650215,0.00017523,7]
[408068630,1773103832631,-3240.0,0.00017574,2]
[408068631,1773103832640,-1000.0,0.00017581,2]
[408068632,1773103832650,-1109.0,0.00017596,2]
[408068633,1773103832659,-656.0,0.0001761,2]
[408068634,1773103832669,-239.207907,0.00017656,7]
[408068635,1773103832678,-28196.27,0.00017745,2]
[408068636,1773103832687,-178.2,0.00017844,2]
[408068637,1773103832697,-1037.69,0.00017912,2]
[408068638,1773103832706,-309.0,0.00017918,2]
[408068639,1773103832715,-250.0,0.00017918,2]
[408068640,1773103832724,-2951.3,0.00017921,2]
[408068641,1773103832734,-243.584935,0.0001796,7]
[408068642,1773103832743,-406.678294,0.0001796,7]
[408068643,1773103832752,-362.0,0.00018018,2]
[408068644,1773103832762,-500.0,0.00018045,2]
[408068645,1773103832771,-500.0,0.00018045,2]
[408068646,1773103832781,-500.0,0.00018045,2]
[408068647,1773103832791,-500.0,0.00018045,2]
[408068648,1773103832800,-500.0,0.00018082,2]
[408068649,1773103832809,-504.61370509,0.00018129,2]
[408068650,1773103832818,-2101.0,0.00018295,2]
[408068651,1773103832828,-13376.87,0.00018355,2]
[408068652,1773103833042,-500.0,0.00018355,2]
[408068653,1773103833116,-500.0,0.00018356,7]
[408068654,1773103833125,-500.0,0.00018356,7]
[408068655,1773103833135,-500.0,0.00018356,7]
[408068656,1773103833144,-250.0,0.00018418,2]
[408068657,1773103833153,-150.0,0.00018418,2]
[408068658,1773103833162,-1852.42,0.00018431,2]
[408068659,1773103833172,-1109.0,0.00018476,2]
[408068660,1773103833181,-200.0,0.00018585,2]
[408068661,1773103833191,-7639.39371678,0.00018807,2]
[408068662,1773103833201,-2951.3,0.00018817,2]
[408068663,1773103833210,-250.0,0.00018905,2]
[408068664,1773103833219,-222.9031,0.00018963,7]
[408068665,1773103833228,-1000.0,0.0001899,2]
[408068666,1773103833237,-174.61919141,0.0001899,2]
[408068667,1773103833247,-203.07637634,0.00019004,2]
[408068668,1773103833256,-587.0,0.00019033,2]
[408068669,1773103833265,-215.03088498,0.00019071,2]
[408068670,1773103833274,-624.06,0.00019178,2]
[408068671,1773103833283,-787.0,0.00019178,2]
[408068672,1773103833293,-1000.0,0.00019178,2]
[408068673,1773103833301,-250.0,0.00019181,2]
[408068674,1773103833311,-168.0,0.00019189,2]
[408068675,1773103833319,-238.74470777,0.00019235,2]
[408068676,1773103833329,-215.03088498,0.00019237,2]
[408068677,1773103833342,-503.0,0.0001925,4]
[408068678,1773103833351,-500.0,0.00019313,2]
[408068679,1773103833360,-228.27116237,0.00019313,2]
[408068680,1773103833369,-847.0,0.0001936,2]
[408068681,1773103833379,-1109.0,0.000194,2]
[408068682,1773103833388,-215.03088498,0.00019403,2]
[408068683,1773103833397,-161.62513775,0.00019425,2]
[408068684,1773103833406,-161.62513775,0.00019425,2]
[408068685,1773103833417,-500.0,0.00019452,7]
[408068686,1773103833426,-500.0,0.00019452,7]
[408068687,1773103833435,-787.0,0.00019452,2]
[408068688,1773103833444,-1000.0,0.00019452,2]
[408068689,1773103833453,-250.0,0.00019468,2]
[408068690,1773103833462,-250.0,0.00019508,2]
[408068691,1773103833471,-1000.0,0.00019538,2]
[408068692,1773103833480,-181.08010149,0.00019538,2]
[408068693,1773103833488,-215.03088498,0.00019568,2]
[408068694,1773103833498,-1688.24192071,0.000196,2]
[408068695,1773103833507,-1575.37521674,0.00019626,2]
[408068696,1773103833517,-24890.9115,0.00019629,2]
[408068697,1773103833528,-6750.3714,0.00019629,2]
[408068698,1773103833540,-3208.9362,0.00019629,2]
[408068699,1773103833550,-1575.37521667,0.00019656,2]
[408068700,1773103833559,-707.0,0.0001967,5]
[408068701,1773103833570,-2806.0,0.0001968,2]
[408068702,1773103833582,-1575.37521667,0.00019687,2]
[408068703,1773103833593,-16419.926,0.000197,2]
[408068704,1773103833603,-2500.0,0.000197,2]
[408068705,1773103833613,-3652.59688686,0.000197,2]
[408068706,1773103833622,-292.38678472,0.000197,2]
[408068707,1773103833631,-1017.06,0.00019711,2]
[408068708,1773103833643,-2951.3,0.00019713,2]
[408068709,1773103833653,-1575.37521667,0.00019717,2]
[408068710,1773103833662,-250.0,0.0001972,2]
[408068711,1773103833671,-172.87392778,0.00019721,2]
[408068712,1773103833680,-150.0,0.00019722,2]
[408068713,1773103833694,-150.0,0.00019722,2]
[408068714,1773103833714,-150.0,0.00019722,2]
[408068715,1773103833727,-150.0,0.00019722,2]
[408068716,1773103833736,-150.0,0.00019722,2]
[408068717,1773103833746,-200.0,0.00019722,2]
[408068718,1773103833756,-250.0,0.00019722,2]
[408068719,1773103833766,-150.0,0.00019722,2]
[408068720,1773103833775,-150.0,0.00019722,2]
[408068721,1773103833784,-150.0,0.00019722,2]
[408068722,1773103833795,-150.0,0.00019722,2]
[408068723,1773103833805,-150.0,0.00019722,2]
[408068724,1773103833815,-150.0,0.00019722,2]
[408068725,1773103833825,-150.0,0.00019722,2]
[408068726,1773103833835,-500.0,0.00019722,2]
[408068727,1773103833845,-150.0,0.00019722,2]
[408068728,1773103833854,-250.0,0.00019722,2]
[408068729,1773103833864,-3652.59688686,0.00019722,2]
[408068730,1773103833873,-787.0,0.00019726,2]
[408068731,1773103833883,-1000.0,0.00019726,2]
[408068732,1773103833892,-1000.0,0.00019728,2]
[408068733,1773103833902,-292.38678469,0.00019729,2]
[408068734,1773103833911,-215.03088498,0.00019734,2]
[408068735,1773103833921,-3652.59688686,0.00019744,2]
[408068736,1773103833930,-1575.37521667,0.00019748,2]
[408068737,1773103833940,-1935.437,0.00019754,2]
[408068738,1773103833949,-168.746,0.00019754,2]
[408068739,1773103833959,-250.0,0.00019764,2]
[408068740,1773103833968,-3652.59688686,0.00019767,2]
[408068741,1773103833977,-250.0,0.0001977,2]
[408068742,1773103833987,-150.0,0.00019777,2]
[408068743,1773103833996,-150.0,0.00019777,2]
[408068744,1773103834006,-150.0,0.00019777,2]
[408068745,1773103834015,-150.0,0.00019777,2]
[408068746,1773103834024,-150.0,0.00019777,2]
[408068747,1773103834033,-150.0,0.00019777,2]
[408068748,1773103834043,-500.0,0.00019777,2]
[408068749,1773103834052,-1575.37521667,0.00019778,2]
[408068750,1773103834061,-3652.59688686,0.00019789,2]
[408068751,1773103834071,-196.51231277,0.0001979,2]
[408068752,1773103834080,-151.0,0.00019797,2]
[408068753,1773103834089,-451.19589231,0.00019799,2]
[408068754,1773103834099,-294.7522009,0.00019799,2]
[408068755,1773103834108,-500.0,0.00019799,2]
[408068756,1773103834117,-500.0,0.00019799,2]
[408068757,1773103834126,-269.33602321,0.00019799,2]
[408068758,1773103834135,-163.89588284,0.00019799,2]
[408068759,1773103834145,-500.0,0.00019799,2]
[408068760,1773103834154,-500.0,0.00019799,2]
[408068761,1773103834164,-559.17550653,0.00019799,2]
[408068762,1773103834173,-500.0,0.00019799,2]
[408068763,1773103834182,-500.0,0.00019799,2]
[408068764,1773103834191,-500.0,0.00019799,2]
[408068765,1773103834200,-500.0,0.00019799,2]
[408068766,1773103834209,-500.0,0.00019799,2]
[408068767,1773103834218,-500.0,0.00019799,2]
[408068768,1773103834228,-150.0,0.00019799,2]
[408068769,1773103834237,-3500.0,0.000198,2]
[408068770,1773103834246,-1271.65,0.000198,5]
[408068771,1773103834255,-132195.50831313,0.000198,2]
[408068772,1773103834270,-356830.521,0.000198,2]
[408068773,1773103834281,-30985.63074662,0.000198,2]
[408068774,1773103834292,-500.0,0.000198,2]
[408068775,1773103834307,-124086.39297458,0.000198,2]
[408068776,1773103834318,-784.54454562,0.000198,2]
[408068855,1773103840483,-8809.51682537,0.000198,2]
[408068856,1773103840497,-8947.21879473,0.000198,2]
[408068857,1773103840510,-8943.78386462,0.000198,2]
[408068858,1773103840522,-9077.54866152,0.000198,2]
[408068859,1773103840544,-795866.13315654,0.000198,2]
[408068860,1773103840855,-511.0,0.000198,2]
[408068870,1773103841254,-38091.08882568,0.000198,2]
[408068930,1773103846191,-1200.0,0.00019,6]
[408068931,1773103846202,-2500.0,0.000191,6]
[408068932,1773103846212,-7350.80782977,0.00019529,2]
[408068933,1773103846224,-1037.92231256,0.00019529,2]
[408068935,1773103846236,-7.09915767,0.00019529,2]
[408068937,1773103846245,-292.38678469,0.00019757,2]
[408068939,1773103846254,-10177.21983781,0.000198,2]
[408068942,1773103846273,-262.6,0.000198,2]
[408068945,1773103846289,-13861.4,0.000198,2]
[408068946,1773103846300,-1814.41110445,0.000198,2]
[408069000,1773104553857,5000.01,9.5e-05,3]
[408069001,1773104553879,4746.61191552,9.5e-05,3]
[408069002,1773104570634,552.81073262,0.00014157,2]
[408069004,1773104764894,187.47,0.00014,2]
[408069005,1773104790488,150.0,0.00019258,120]
[408069006,1773104845893,862.97844485,9.157e-05,2]
[408069007,1773104849018,500.0,9.157e-05,2]
[408069008,1773104849752,500.0,9.157e-05,2]
[408069009,1773104895708,1000.0,0.00014,2]
[408069010,1773104956437,-3018.0,0.000147,5]
[408069011,1773104956464,-1558.49,0.00014717,2]